fUSD/lending_fUSD_20250618
["ID","MTS","AMOUNT","RATE_DAILY","PERIOD"]
[366387804,1750227042936,-314.1648803,0.00016438,2]
[366387805,1750227042981,-175.8351197,0.00016438,2]
[366387806,1750227042990,-268.77632016,0.00016438,2]
[366387807,1750227043000,-490.0,0.00016438,2]
[366387808,1750227043010,-70.24680074,0.00016438,2]
[366387809,1750227043022,-419.75319926,0.00016438,2]
[366387810,1750227043032,-490.0,0.00016438,2]
[366387811,1750227043042,-490.0,0.00016438,2]
[366387812,1750227043053,-163.48510388,0.00016438,2]
[366387813,1750227043066,-326.51489612,0.00016438,2]
[366387814,1750227043077,-709.82,0.00016438,2]
[366387815,1750227043089,-118.66510393,0.00016438,2]
[366387820,1750227044017,-1077.45489607,0.00016438,2]
[366387821,1750227044027,-490.0,0.00016438,2]
[366387822,1750227044036,-330.9,0.00016438,2]
[366387823,1750227044047,-709.83,0.00016438,2]
[366387824,1750227044057,-490.0,0.00016438,2]
[366387825,1750227044069,-637.91,0.00016438,2]
[366387826,1750227044079,-379.14722464,0.00016438,2]
[366387827,1750227044090,-490.0,0.00016438,2]
[366387828,1750227044099,-518.2,0.00016438,2]
[366387829,1750227044110,-490.0,0.00016438,2]
[366387830,1750227044120,-513.23,0.00016438,2]
[366387831,1750227044130,-490.0,0.00016438,2]
[366387832,1750227044140,-854.85,0.00016438,2]
[366387833,1750227044151,-490.0,0.00016438,2]
[366387834,1750227044160,-637.75,0.00016438,2]
[366387835,1750227044170,-793.944654,0.00016438,2]
[366387836,1750227044181,-490.0,0.00016438,2]
[366387837,1750227044191,-490.0,0.00016438,2]
[366387838,1750227044202,-490.0,0.00016438,2]
[366387839,1750227044212,-711.43,0.00016438,2]
[366387840,1750227044222,-490.0,0.00016438,2]
[366387841,1750227044232,-491.74378923,0.00016438,2]
[366387842,1750227044243,-490.0,0.00016438,2]
[366387843,1750227044253,-490.0,0.00016438,2]
[366387844,1750227044264,-490.0,0.00016438,2]
[366387845,1750227044274,-490.0,0.00016438,2]
[366387846,1750227044285,-490.0,0.00016438,2]
[366387847,1750227044295,-300.0,0.00016438,2]
[366387848,1750227044304,-1030.48,0.00016438,2]
[366387849,1750227044315,-490.0,0.00016438,2]
[366387850,1750227044325,-490.0,0.00016438,2]
[366387851,1750227044337,-490.0,0.00016438,2]
[366387852,1750227044347,-502.44,0.00016438,2]
[366387853,1750227044358,-490.0,0.00016438,2]
[366387854,1750227044368,-494.45,0.00016438,2]
[366387855,1750227044379,-995.5,0.00016438,2]
[366387856,1750227044389,-151.0,0.00016438,2]
[366387857,1750227044399,-151.0,0.00016438,2]
[366387858,1750227044411,-744.52,0.00016438,2]
[366387859,1750227044432,-499.65872488,0.00016438,2]
[366387860,1750227044443,-77.82171357,0.00016438,2]
[366387861,1750227044482,-580.83560979,0.00016438,2]
[366387862,1750227044513,-451.11267664,0.00016438,2]
[366387863,1750227044523,-624.73,0.00016438,2]
[366387864,1750227044534,-490.0,0.00016438,2]
[366387865,1750227044544,-490.0,0.00016438,2]
[366387866,1750227044555,-490.0,0.00016438,2]
[366387867,1750227044566,-490.0,0.00016438,2]
[366387868,1750227044576,-152.375846,0.00016438,2]
[366387869,1750227044586,-490.0,0.00016438,2]
[366387870,1750227044597,-490.0,0.00016438,2]
[366387871,1750227044608,-1149.14,0.00016438,2]
[366387872,1750227044618,-490.0,0.00016438,2]
[366387873,1750227044628,-151.0,0.00016438,2]
[366387874,1750227044639,-156.633048,0.00016438,2]
[366387875,1750227044649,-490.0,0.00016438,2]
[366387876,1750227044660,-806.03,0.00016438,2]
[366387877,1750227044670,-590.53,0.00016438,2]
[366387878,1750227044680,-1154.23,0.00016438,2]
[366387879,1750227044690,-496.35142104,0.00016438,2]
[366387880,1750227044701,-494.67057874,0.00016438,2]
[366387881,1750227044711,-151.42246,0.00016438,2]
[366387882,1750227044721,-490.0,0.00016438,2]
[366387883,1750227044731,-490.0,0.00016438,2]
[366387884,1750227044742,-151.0,0.00016438,2]
[366387885,1750227044752,-490.0,0.00016438,2]
[366387886,1750227044762,-176.017517,0.00016438,2]
[366387887,1750227044773,-584.38,0.00016438,2]
[366387888,1750227044783,-490.0,0.00016438,2]
[366387889,1750227044793,-1656.11,0.00016438,2]
[366387890,1750227044803,-151.0,0.00016438,2]
[366387891,1750227044813,-153.953065,0.00016438,2]
[366387892,1750227044823,-323.96727909,0.00016438,2]
[366387893,1750227046620,-298.49272091,0.00016438,2]
[366387894,1750227046630,-464.59614106,0.00016438,2]
[366387895,1750227046640,-869.54,0.00016438,2]
[366387896,1750227046650,-490.0,0.00016438,2]
[366387897,1750227046660,-492.43317847,0.00016438,2]
[366387898,1750227046670,-196.19824089,0.00016438,2]
[366387899,1750227046703,-1262.91175911,0.00016438,2]
[366387900,1750227046712,-163.64376274,0.00016438,2]
[366387901,1750227046765,-765.14623726,0.00016438,2]
[366387902,1750227046775,-490.0,0.00016438,2]
[366387903,1750227046784,-497.22742267,0.00016438,2]
[366387904,1750227046794,-490.0,0.00016438,2]
[366387905,1750227046803,-490.0,0.00016438,2]
[366387906,1750227046813,-490.0,0.00016438,2]
[366387907,1750227046823,-625.14,0.00016438,2]
[366387908,1750227046832,-151.806475,0.00016438,2]
[366387909,1750227046841,-490.0,0.00016438,2]
[366387910,1750227046850,-490.0,0.00016438,2]
[366387911,1750227046860,-1613.84,0.00016438,2]
[366387912,1750227046869,-1174.55,0.00016438,2]
[366387913,1750227046879,-1381.47,0.00016438,2]
[366387914,1750227046888,-563.45,0.00016438,2]
[366387915,1750227046897,-598.99,0.00016438,2]
[366387916,1750227046908,-492.15803661,0.00016438,2]
[366387917,1750227046917,-1344.86,0.00016438,2]
[366387918,1750227046926,-718.99,0.00016438,2]
[366387919,1750227046936,-151.0,0.00016438,2]
[366387920,1750227046946,-151.0,0.00016438,2]
[366387921,1750227046955,-151.0,0.00016438,2]
[366387922,1750227046964,-151.0,0.00016438,2]
[366387923,1750227046973,-158.825354,0.00016438,2]
[366387924,1750227046983,-490.0,0.00016438,2]
[366387925,1750227046993,-490.0,0.00016438,2]
[366387926,1750227047002,-490.0,0.00016438,2]
[366387927,1750227047012,-490.0,0.00016438,2]
[366387928,1750227047022,-248.04647446,0.00016438,2]
[366387935,1750227372042,203.0,0.00012919,2]
[366387939,1750227560903,1273.0,0.00024657,120]
[366387945,1750227952961,10960.55154351,6.94e-05,2]
[366387947,1750228034821,205.0,9.8e-05,2]
[366387948,1750228038541,2068.46677667,0.0001305,2]
[366387949,1750228038995,252.89916093,0.000101,2]
[366387951,1750228070289,4304.57397044,0.00013,2]
[366387953,1750228094227,299.0800809,0.000125,2]
[366387954,1750228110276,217.9109097,0.0001,2]
[366387955,1750228113351,2661.87058222,0.0001,2]
[366387958,1750228120116,356.60540203,0.00010136,2]
[366387961,1750228150114,869.23966359,0.00024,120]
[366387973,1750228232437,-203.0,0.00013161,2]
[366387974,1750228232447,-4197.4166835,0.00013368,2]
[366387975,1750228232458,-1000.0,0.000135,2]
[366387976,1750228232467,-178.48,0.00013699,2]
[366387977,1750228232477,-36.3313165,0.0001439,2]
[366387978,1750228232489,-163.77035971,0.0001439,2]
[366387980,1750228232498,-956.73897763,0.000149,2]
[366387982,1750228232508,-96.61587284,0.00014989,7]
[366387984,1750228232520,-103.38412716,0.00014989,7]
[366387986,1750228232530,-300.0,0.00014999,2]
[366387989,1750228232540,-1200.0,0.00014999,2]
[366387993,1750228232550,-1990.78188945,0.00015,2]
[366387994,1750228232559,-595.9452428,0.00015,2]
[366387997,1750228232569,-970.23980874,0.00015,2]
[366387998,1750228232579,-956.73897753,0.00015072,2]
[366387999,1750228232588,-956.73897753,0.00015245,2]
[366388000,1750228232598,-1517.64,0.000153,2]
[366388001,1750228232608,-250.0,0.0001531,2]
[366388002,1750228232618,-1000.0,0.00015391,2]
[366388003,1750228232627,-493.41513324,0.000154,2]
[366388004,1750228232637,-956.73897753,0.00015417,2]
[366388005,1750228232647,-180.38,0.00015436,2]
[366388006,1750228232656,-203.0,0.00015503,4]
[366388007,1750228232666,-956.73897753,0.0001559,2]
[366388008,1750228232675,-805.72,0.00015741,2]
[366388009,1750228232685,-956.73897753,0.00015762,2]
[366388011,1750228232695,-170.28,0.00015778,2]
[366388013,1750228232705,-300.67,0.00015778,2]
[366388015,1750228232714,-2280.24,0.00015778,2]
[366388017,1750228232723,-455.27,0.00015778,2]
[366388020,1750228232733,-300.0,0.00015778,2]
[366388023,1750228232743,-150.0,0.00015778,2]
[366388026,1750228232752,-956.73897753,0.00015934,2]
[366388029,1750228232761,-300.0,0.00015999,2]
[366388031,1750228232771,-626.92712442,0.00016,2]
[366388032,1750228232788,-395.17093248,0.00016,2]
[366388475,1750228238153,-385.01401843,0.00016,2]
[366388476,1750228238235,-557.23,0.00016,2]
[366388477,1750228238248,-435.68082201,0.00016,2]
[366388478,1750228238260,-19651.0611834,0.00016,2]
[366388479,1750228238270,-183.0,0.00016095,2]
[366388480,1750228238280,-1164.87,0.000161,2]
[366388481,1750228238291,-170.85,0.000161,2]
[366388482,1750228238301,-163.48,0.000161,2]
[366388483,1750228238311,-956.73897753,0.00016107,2]
[366388484,1750228238321,-898.021854,0.00016109,2]
[366388485,1750228238331,-183.0,0.00016182,2]
[366388486,1750228238341,-1245.70230833,0.0001623,2]
[366388487,1750228238351,-956.73897753,0.00016279,2]
[366388488,1750228238362,-2000.0,0.0001628,2]
[366388489,1750228238372,-183.0,0.00016286,2]
[366388490,1750228238381,-300.0,0.00016289,2]
[366388491,1750228238391,-1957.856,0.0001629,2]
[366388492,1750228238401,-207.4,0.0001629,2]
[366388493,1750228238411,-25555.0,0.000163,2]
[366388494,1750228238423,-963.93704689,0.000163,2]
[366388495,1750228238432,-155.3524393,0.000163,2]
[366388496,1750228238444,-506.21626689,0.000163,2]
[366388497,1750228238456,-710.8463209,0.000163,2]
[366388498,1750228238466,-79.76910287,0.000163,2]
[366388500,1750228238478,-79.34676958,0.000163,2]
[366388503,1750228238488,-230.0,0.00016328,2]
[366388505,1750228238497,-324.574623,0.00016338,2]
[366388506,1750228238507,-169.71940608,0.00016338,2]
[366388509,1750228238516,-2030.296672,0.00016345,2]
[366388511,1750228238526,-183.0,0.00016357,2]
[366388513,1750228238536,-159.11587244,0.00016373,2]
[366388515,1750228238546,-1372.41502703,0.00016377,2]
[366388517,1750228238556,-151.0,0.0001639,2]
[366388519,1750228238566,-580.37669501,0.0001639,2]
[366388521,1750228238575,-43427.04303397,0.000164,2]
[366388523,1750228238585,-16488.59700187,0.000164,2]
[366388528,1750228238620,-88285.40299813,0.000164,2]
[366388530,1750228238631,-151.0,0.000164,2]
[366388532,1750228238640,-153.994015,0.000164,2]
[366388534,1750228238649,-151.0,0.000164,2]
[366388536,1750228238658,-151.0,0.000164,2]
[366388538,1750228238668,-151.0,0.000164,2]
[366388540,1750228238677,-193.331556,0.000164,2]
[366388542,1750228238687,-160.775353,0.000164,2]
[366388544,1750228238696,-2029.72091975,0.000164,2]
[366388546,1750228238706,-183.0,0.00016408,2]
[366388548,1750228238715,-420.0,0.00016416,2]
[366388550,1750228238725,-230.0,0.00016428,2]
[366388560,1750228238815,-230.0,0.00016434,2]
[366388562,1750228238825,-341.8,0.00016437,2]
[366388564,1750228238835,-439.82512491,0.00016437,2]
[366388566,1750228238845,-500.0,0.00016437,2]
[366388568,1750228238855,-31277.43485216,0.00016438,2]
[366388570,1750228238864,-5259.19309859,0.00016438,2]
[366388572,1750228238873,-151.0,0.00016438,2]
[366388574,1750228238883,-151.859175,0.00016438,2]
[366388576,1750228238892,-151.0,0.00016438,2]
[366388578,1750228238902,-490.0,0.00016438,2]
[366388580,1750228238911,-490.0,0.00016438,2]
[366388582,1750228238921,-490.0,0.00016438,2]
[366388584,1750228238935,-490.0,0.00016438,2]
[366388586,1750228238944,-490.0,0.00016438,2]
[366388588,1750228238955,-490.0,0.00016438,2]
[366388590,1750228238964,-829.31,0.00016438,2]
[366388592,1750228238974,-598.39180728,0.00016438,2]
[366388594,1750228238983,-491.084431,0.00016438,2]
[366388596,1750228238992,-490.0,0.00016438,2]
[366388598,1750228239002,-490.0,0.00016438,2]
[366388600,1750228239013,-490.0,0.00016438,2]
[366388602,1750228239023,-490.0,0.00016438,2]
[366388604,1750228239032,-490.0,0.00016438,2]
[366388606,1750228239041,-852.7,0.00016438,2]
[366388608,1750228239051,-976.48,0.00016438,2]
[366388611,1750228239075,-200.0,0.00016438,2]
[366388613,1750228239084,-490.0,0.00016438,2]
[366388615,1750228239094,-769.61,0.00016438,2]
[366388617,1750228239104,-490.0,0.00016438,2]
[366388619,1750228239113,-490.0,0.00016438,2]
[366388621,1750228239122,-151.0,0.00016438,2]
[366388623,1750228239132,-154.45066927,0.00016438,2]
[366388625,1750228239142,-490.0,0.00016438,2]
[366388627,1750228239152,-490.0,0.00016438,2]
[366388629,1750228239162,-490.0,0.00016438,2]
[366388631,1750228239171,-490.0,0.00016438,2]
[366388633,1750228239181,-490.0,0.00016438,2]
[366388635,1750228239191,-490.0,0.00016438,2]
[366388637,1750228239200,-734.69,0.00016438,2]
[366388639,1750228239209,-490.0,0.00016438,2]
[366388641,1750228239220,-490.0,0.00016438,2]
[366388643,1750228239230,-490.0,0.00016438,2]
[366388645,1750228239239,-596.35,0.00016438,2]
[366388647,1750228239249,-300.0,0.00016438,2]
[366388649,1750228239258,-522.52,0.00016438,2]
[366388651,1750228239268,-490.0,0.00016438,2]
[366388653,1750228239278,-742.5,0.00016438,2]
[366388655,1750228239287,-490.0,0.00016438,2]
[366388657,1750228239298,-873.72,0.00016438,2]
[366388659,1750228239307,-490.0,0.00016438,2]
[366388661,1750228239316,-490.0,0.00016438,2]
[366388663,1750228239326,-861.7,0.00016438,2]
[366388665,1750228239334,-490.0,0.00016438,2]
[366388666,1750228239344,-490.0,0.00016438,2]
[366388667,1750228239353,-490.0,0.00016438,2]
[366388668,1750228239363,-490.0,0.00016438,2]
[366388669,1750228239372,-490.0,0.00016438,2]
[366388670,1750228239382,-490.0,0.00016438,2]
[366388671,1750228239391,-499.72103063,0.00016438,2]
[366388672,1750228239401,-504.11665116,0.00016438,2]
[366388673,1750228239410,-490.0,0.00016438,2]
[366388674,1750228239420,-490.0,0.00016438,2]
[366388675,1750228239430,-340.61,0.00016438,2]
[366388677,1750228239439,-498.45,0.00016438,2]
[366388679,1750228239449,-490.0,0.00016438,2]
[366388681,1750228239458,-632.37,0.00016438,2]
[366388683,1750228239468,-490.0,0.00016438,2]
[366388685,1750228239478,-490.0,0.00016438,2]
[366388687,1750228239487,-490.0,0.00016438,2]
[366388689,1750228239497,-490.0,0.00016438,2]
[366388691,1750228239506,-490.0,0.00016438,2]
[366388694,1750228239516,-490.0,0.00016438,2]
[366388696,1750228239526,-490.0,0.00016438,2]
[366388698,1750228239535,-490.0,0.00016438,2]
[366388699,1750228239544,-728.74,0.00016438,2]
[366388701,1750228239552,-985.73,0.00016438,2]
[366388703,1750228239561,-490.0,0.00016438,2]
[366388705,1750228239570,-490.0,0.00016438,2]
[366388707,1750228239580,-490.0,0.00016438,2]
[366388709,1750228239588,-518.23,0.00016438,2]
[366388711,1750228239598,-490.0,0.00016438,2]
[366388713,1750228239607,-490.0,0.00016438,2]
[366388715,1750228239616,-490.0,0.00016438,2]
[366388717,1750228239626,-490.0,0.00016438,2]
[366388719,1750228239635,-490.0,0.00016438,2]
[366388721,1750228239644,-537.07,0.00016438,2]
[366388723,1750228239653,-490.0,0.00016438,2]
[366388725,1750228239663,-490.0,0.00016438,2]
[366388727,1750228239672,-490.0,0.00016438,2]
[366388729,1750228239681,-490.0,0.00016438,2]
[366388731,1750228239690,-490.0,0.00016438,2]
[366388733,1750228239700,-490.0,0.00016438,2]
[366388735,1750228239710,-490.0,0.00016438,2]
[366388737,1750228239719,-152.345492,0.00016438,2]
[366388739,1750228239729,-608.7,0.00016438,2]
[366388741,1750228239738,-490.0,0.00016438,2]
[366388743,1750228239747,-1486.82,0.00016438,2]
[366388745,1750228239757,-490.0,0.00016438,2]
[366388747,1750228239766,-490.0,0.00016438,2]
[366388749,1750228239775,-490.0,0.00016438,2]
[366388751,1750228239785,-592.13,0.00016438,2]
[366388753,1750228239795,-490.0,0.00016438,2]
[366388755,1750228239804,-206.77960578,0.00016438,2]
[366388757,1750228239814,-490.0,0.00016438,2]
[366388759,1750228239823,-490.0,0.00016438,2]
[366388761,1750228239832,-490.0,0.00016438,2]
[366388763,1750228239842,-490.0,0.00016438,2]
[366388765,1750228239852,-490.0,0.00016438,2]
[366388767,1750228239863,-151.0,0.00016438,2]
[366388769,1750228239872,-490.0,0.00016438,2]
[366388771,1750228239881,-490.0,0.00016438,2]
[366388773,1750228239891,-490.0,0.00016438,2]
[366388775,1750228239900,-605.41,0.00016438,2]
[366388777,1750228239909,-517.99,0.00016438,2]
[366388779,1750228239919,-151.0,0.00016438,2]
[366388781,1750228239930,-152.170871,0.00016438,2]
[366388783,1750228239940,-490.0,0.00016438,2]
[366388786,1750228239950,-490.0,0.00016438,2]
[366388787,1750228239961,-490.0,0.00016438,2]
[366388790,1750228239971,-490.0,0.00016438,2]
[366388792,1750228239980,-490.0,0.00016438,2]
[366388793,1750228239990,-490.0,0.00016438,2]
[366388795,1750228239999,-496.46120427,0.00016438,2]
[366388798,1750228240009,-969.56,0.00016438,2]
[366388799,1750228240019,-645.69,0.00016438,2]
[366388801,1750228240028,-151.0,0.00016438,2]
[366388804,1750228240039,-151.0,0.00016438,2]
[366388807,1750228240050,-188.154248,0.00016438,2]
[366388811,1750228240060,-503.0124461,0.00016438,2]
[366388814,1750228240070,-490.0,0.00016438,2]
[366388817,1750228240080,-579.87,0.00016438,2]
[366388820,1750228240090,-490.0,0.00016438,2]
[366388823,1750228240100,-490.0,0.00016438,2]
[366388826,1750228240109,-490.0,0.00016438,2]
[366388829,1750228240121,-490.0,0.00016438,2]
[366388832,1750228240130,-620.36,0.00016438,2]
[366388835,1750228240140,-490.0,0.00016438,2]
[366388838,1750228240150,-490.0,0.00016438,2]
[366388841,1750228240159,-861.57,0.00016438,2]
[366388844,1750228240169,-490.0,0.00016438,2]
[366388847,1750228240179,-490.0,0.00016438,2]
[366388849,1750228240189,-490.0,0.00016438,2]
[366388852,1750228240198,-742.97,0.00016438,2]
[366388854,1750228240207,-151.0,0.00016438,2]
[366388857,1750228240217,-151.0,0.00016438,2]
[366388861,1750228240226,-151.0,0.00016438,2]
[366388864,1750228240236,-497.46782427,0.00016438,2]
[366388867,1750228240246,-151.0,0.00016438,2]
[366388869,1750228240255,-151.0,0.00016438,2]
[366388871,1750228240265,-490.0,0.00016438,2]
[366388873,1750228240275,-151.0,0.00016438,2]
[366388875,1750228240285,-218.927476,0.00016438,2]
[366388878,1750228240294,-490.0,0.00016438,2]
[366388880,1750228240304,-495.83810809,0.00016438,2]
[366388881,1750228240313,-614.64,0.00016438,2]
[366388883,1750228240322,-490.0,0.00016438,2]
[366388885,1750228240331,-490.0,0.00016438,2]
[366388887,1750228240341,-490.0,0.00016438,2]
[366388890,1750228240351,-490.0,0.00016438,2]
[366388892,1750228240360,-490.0,0.00016438,2]
[366388894,1750228240370,-490.0,0.00016438,2]
[366388896,1750228240379,-491.69747001,0.00016438,2]
[366388897,1750228240389,-490.0,0.00016438,2]
[366388899,1750228240399,-340.37747265,0.00016438,2]
[366388902,1750228240408,-490.0,0.00016438,2]
[366388903,1750228240419,-490.0,0.00016438,2]
[366388906,1750228240429,-500.0,0.00016438,2]
[366388907,1750228240439,-500.0,0.00016438,2]
[366388909,1750228240448,-500.0,0.00016438,2]
[366388911,1750228240458,-490.0,0.00016438,2]
[366388913,1750228240467,-500.0,0.00016438,2]
[366388916,1750228240477,-490.0,0.00016438,2]
[366388917,1750228240487,-490.0,0.00016438,2]
[366388920,1750228240497,-490.0,0.00016438,2]
[366388922,1750228240507,-490.0,0.00016438,2]
[366388923,1750228240517,-490.0,0.00016438,2]
[366388926,1750228240527,-490.0,0.00016438,2]
[366388928,1750228240537,-580.19,0.00016438,2]
[366388930,1750228240546,-490.0,0.00016438,2]
[366388932,1750228240556,-494.16522941,0.00016438,2]
[366388934,1750228240566,-496.53421635,0.00016438,2]
[366388936,1750228240575,-490.0,0.00016438,2]
[366388938,1750228240584,-490.0,0.00016438,2]
[366388940,1750228240594,-490.0,0.00016438,2]
[366388942,1750228240604,-688.76,0.00016438,2]
[366388944,1750228240614,-490.0,0.00016438,2]
[366388946,1750228240623,-878.94,0.00016438,2]
[366388948,1750228240634,-502.24649946,0.00016438,2]
[366388950,1750228240644,-490.0,0.00016438,2]
[366388952,1750228240653,-490.0,0.00016438,2]
[366388954,1750228240663,-490.0,0.00016438,2]
[366388956,1750228240672,-648.37,0.00016438,2]
[366388958,1750228240682,-490.0,0.00016438,2]
[366388960,1750228240692,-490.0,0.00016438,2]
[366388962,1750228240701,-416.69031958,0.00016438,2]
[366388964,1750228240710,-490.0,0.00016438,2]
[366388966,1750228240719,-151.0,0.00016438,2]
[366388968,1750228240729,-490.0,0.00016438,2]
[366388970,1750228240739,-151.0,0.00016438,2]
[366388972,1750228240749,-151.0,0.00016438,2]
[366388974,1750228240758,-151.0,0.00016438,2]
[366388976,1750228240767,-490.0,0.00016438,2]
[366388978,1750228240777,-151.0,0.00016438,2]
[366388980,1750228240787,-151.0,0.00016438,2]
[366388982,1750228240796,-151.0,0.00016438,2]
[366388984,1750228240805,-151.0,0.00016438,2]
[366388986,1750228240815,-490.0,0.00016438,2]
[366388988,1750228240824,-490.0,0.00016438,2]
[366388990,1750228240834,-151.0,0.00016438,2]
[366388992,1750228240843,-151.0,0.00016438,2]
[366388994,1750228240853,-490.0,0.00016438,2]
[366388996,1750228240863,-151.0,0.00016438,2]
[366388998,1750228240872,-245.944091,0.00016438,2]
[366389000,1750228240881,-490.0,0.00016438,2]
[366389002,1750228240891,-490.0,0.00016438,2]
[366389004,1750228240900,-490.0,0.00016438,2]
[366389006,1750228240909,-493.52014018,0.00016438,2]
[366389008,1750228240919,-490.0,0.00016438,2]
[366389010,1750228240930,-490.0,0.00016438,2]
[366389012,1750228240941,-490.0,0.00016438,2]
[366389014,1750228240951,-496.24964688,0.00016438,2]
[366389016,1750228240959,-490.0,0.00016438,2]
[366389018,1750228240969,-512.33,0.00016438,2]
[366389020,1750228240978,-490.0,0.00016438,2]
[366389022,1750228240988,-490.0,0.00016438,2]
[366389024,1750228240997,-490.0,0.00016438,2]
[366389026,1750228241007,-956.13,0.00016438,2]
[366389028,1750228241016,-490.0,0.00016438,2]
[366389030,1750228241025,-490.0,0.00016438,2]
[366389032,1750228241034,-490.0,0.00016438,2]
[366389034,1750228241044,-490.0,0.00016438,2]
[366389036,1750228241053,-490.0,0.00016438,2]
[366389038,1750228241063,-490.0,0.00016438,2]
[366389039,1750228241072,-490.0,0.00016438,2]
[366389041,1750228241081,-490.0,0.00016438,2]
[366389044,1750228241091,-490.0,0.00016438,2]
[366389045,1750228241102,-490.0,0.00016438,2]
[366389048,1750228241111,-493.71019269,0.00016438,2]
[366389050,1750228241120,-490.0,0.00016438,2]
[366389051,1750228241129,-490.0,0.00016438,2]
[366389054,1750228241139,-267.90523209,0.00016438,2]
[366389055,1750228241149,-490.0,0.00016438,2]
[366389057,1750228241159,-726.53,0.00016438,2]
[366389060,1750228241169,-490.0,0.00016438,2]
[366389062,1750228241178,-505.24421139,0.00016438,2]
[366389063,1750228241187,-490.0,0.00016438,2]
[366389066,1750228241197,-151.84914816,0.00016438,2]
[366389067,1750228241206,-490.0,0.00016438,2]
[366389069,1750228241216,-490.0,0.00016438,2]
[366389071,1750228241226,-490.0,0.00016438,2]
[366389073,1750228241235,-1128.09,0.00016438,2]
[366389075,1750228241244,-490.0,0.00016438,2]
[366389077,1750228241253,-490.0,0.00016438,2]
[366389079,1750228241263,-490.0,0.00016438,2]
[366389081,1750228241272,-490.0,0.00016438,2]
[366389083,1750228241281,-492.35178912,0.00016438,2]
[366389085,1750228241292,-490.0,0.00016438,2]
[366389087,1750228241302,-490.0,0.00016438,2]
[366389089,1750228241312,-697.97,0.00016438,2]
[366389091,1750228241322,-496.32680608,0.00016438,2]
[366389093,1750228241331,-490.0,0.00016438,2]
[366389095,1750228241341,-757.19,0.00016438,2]
[366389097,1750228241350,-490.0,0.00016438,2]
[366389099,1750228241360,-490.0,0.00016438,2]
[366389101,1750228241369,-150.0,0.00016438,2]
[366389103,1750228241379,-490.0,0.00016438,2]
[366389105,1750228241389,-490.0,0.00016438,2]
[366389107,1750228241398,-150.0,0.00016438,2]
[366389109,1750228241408,-563.74,0.00016438,2]
[366389111,1750228241417,-490.0,0.00016438,2]
[366389114,1750228241427,-150.0,0.00016438,2]
[366389116,1750228241437,-500.0,0.00016438,2]
[366389118,1750228241447,-490.0,0.00016438,2]
[366389120,1750228241457,-592.11,0.00016438,2]
[366389122,1750228241467,-500.06585854,0.00016438,2]
[366389124,1750228241477,-1295.9,0.00016438,2]
[366389125,1750228241486,-152.11962139,0.00016438,2]
[366389128,1750228241495,-150.77671026,0.00016438,2]
[366389130,1750228241505,-519.41,0.00016438,2]
[366389132,1750228241514,-490.0,0.00016438,2]
[366389134,1750228241524,-150.0,0.00016438,2]
[366389136,1750228241534,-491.13374888,0.00016438,2]
[366389138,1750228241543,-490.23544333,0.00016438,2]